[Event "FIDE U16 Olympiad_boards_1-80"]
[Site "Eindhoven, Netherlands"]
[Date "2023.08.14"]
[Round "3.23"]
[White "Azadaliyev, Jahandar"]
[Black "Todev, Simeon"]
[Result "1/2-1/2"]
[TimeControl "2700+10"]
[WhiteElo "2156"]
[BlackElo "1932"]

1. d4 {[%clk 00:45:18]} {[%emt 00:00:01]} d5 {[%clk 00:45:00]} {[%emt
00:00:21]} 2. c4 {[%clk 00:45:20]} {[%emt 00:00:07]} c6 {[%clk 00:44:50]}
{[%emt 00:00:21]} 3. e3 {[%clk 00:42:55]} {[%emt 00:02:35]} Bf5 {[%clk
00:44:56]} {[%emt 00:00:03]} 4. Nc3 {[%clk 00:42:29]} {[%emt 00:00:36]} e6
{[%clk 00:45:01]} {[%emt 00:00:06]} 5. Nf3 {[%clk 00:42:33]} {[%emt 00:00:06]}
Nf6 {[%clk 00:45:07]} {[%emt 00:00:03]} 6. Bd3 {[%clk 00:40:05]} {[%emt
00:02:38]} Bxd3 {[%clk 00:45:13]} {[%emt 00:00:05]} 7. Qxd3 {[%clk 00:40:09]}
{[%emt 00:00:03]} Bb4 {[%clk 00:45:09]} {[%emt 00:00:17]} 8. Bd2 {[%clk
00:39:52]} {[%emt 00:00:27]} Nbd7 {[%clk 00:45:07]} {[%emt 00:00:12]} 9. O-O
{[%clk 00:39:52]} {[%emt 00:00:08]} O-O {[%clk 00:45:13]} {[%emt 00:00:05]} 10.
Nxd5 {[%clk 00:39:23]} {[%emt 00:00:39]} exd5 {[%clk 00:40:53]} {[%emt
00:04:30]} 11. Bxb4 {[%clk 00:39:25]} {[%emt 00:00:09]} dxc4 {[%clk 00:38:55]}
{[%emt 00:02:08]} 12. Qxc4 {[%clk 00:39:28]} {[%emt 00:00:06]} Re8 {[%clk
00:39:00]} {[%emt 00:00:06]} 13. Rad1 {[%clk 00:34:04]} {[%emt 00:05:33]} Nd5
{[%clk 00:38:45]} {[%emt 00:00:26]} 14. Ba3 {[%clk 00:33:23]} {[%emt 00:00:51]}
Rc8 {[%clk 00:38:33]} {[%emt 00:00:22]} 15. Qc2 {[%clk 00:33:09]} {[%emt
00:00:24]} N7f6 {[%clk 00:37:58]} {[%emt 00:00:45]} 16. Rfe1 {[%clk 00:32:00]}
{[%emt 00:01:19]} b5 {[%clk 00:36:19]} {[%emt 00:01:49]} 17. Bc5 {[%clk
00:31:40]} {[%emt 00:00:28]} Qa5 {[%clk 00:36:01]} {[%emt 00:00:29]} 18. b4
{[%clk 00:29:33]} {[%emt 00:02:18]} Qa3 {[%clk 00:34:35]} {[%emt 00:01:35]} 19.
Qb3 {[%clk 00:29:11]} {[%emt 00:00:31]} Qa6 {[%clk 00:34:19]} {[%emt 00:00:27]}
20. Ne5 {[%clk 00:28:36]} {[%emt 00:00:46]} Qb7 {[%clk 00:34:24]} {[%emt
00:00:05]} 21. a3 {[%clk 00:25:56]} {[%emt 00:02:49]} Nd7 {[%clk 00:33:07]}
{[%emt 00:01:28]} 22. Nxf7 {[%clk 00:17:45]} {[%emt 00:08:19]} Nxc5 {[%clk
00:32:47]} {[%emt 00:00:32]} 23. Nh6+ {[%clk 00:13:52]} {[%emt 00:04:02]} gxh6
{[%clk 00:32:55]} {[%emt 00:00:02]} 24. dxc5 {[%clk 00:14:02]} Qf7 {[%clk
00:32:37]} {[%emt 00:00:29]} 25. e4 {[%clk 00:14:00]} {[%emt 00:00:12]} Nf6
{[%clk 00:31:43]} {[%emt 00:01:03]} 26. Qg3+ {[%clk 00:13:33]} {[%emt
00:00:37]} Qg6 {[%clk 00:31:30]} {[%emt 00:00:24]} 27. Qxg6+ {[%clk 00:11:39]}
{[%emt 00:02:03]} hxg6 {[%clk 00:31:39]} {[%emt 00:00:02]} 28. f3 {[%clk
00:11:48]} Rcd8 {[%clk 00:31:19]} {[%emt 00:00:30]} 29. Rd6 {[%clk 00:11:18]}
{[%emt 00:00:39]} Rxd6 {[%clk 00:31:06]} {[%emt 00:00:23]} 30. cxd6 {[%clk
00:11:27]} {[%emt 00:00:01]} Kf7 {[%clk 00:30:18]} {[%emt 00:00:58]} 31. Rc1
{[%clk 00:06:20]} {[%emt 00:05:18]} Rc8 {[%clk 00:30:26]} {[%emt 00:00:02]} 32.
e5 {[%clk 00:06:25]} {[%emt 00:00:05]} Nd7 {[%clk 00:29:58]} {[%emt 00:00:36]}
33. f4 {[%clk 00:06:29]} {[%emt 00:00:06]} Ke6 {[%clk 00:30:08]} {[%emt
00:00:01]} 34. Kf2 {[%clk 00:06:13]} {[%emt 00:00:26]} Nb6 {[%clk 00:28:55]}
{[%emt 00:01:23]} 35. Kf3 {[%clk 00:05:16]} {[%emt 00:01:07]} Nc4 {[%clk
00:28:31]} {[%emt 00:00:33]} 36. Rd1 {[%clk 00:05:01]} {[%emt 00:00:26]} Rd8
{[%clk 00:27:50]} {[%emt 00:00:52]} 37. Ke4 {[%clk 00:04:48]} {[%emt 00:00:21]}
h5 {[%clk 00:27:28]} {[%emt 00:00:33]} 38. Rd3 {[%clk 00:04:11]} {[%emt
00:00:48]} Kf7 {[%clk 00:25:42]} {[%emt 00:01:55]} 39. g3 {[%clk 00:03:29]}
{[%emt 00:00:52]} Re8 {[%clk 00:24:07]} {[%emt 00:01:45]} 40. h3 {[%clk
00:03:14]} {[%emt 00:00:23]} Nb2 {[%clk 00:22:41]} {[%emt 00:01:38]} 41. Rc3
{[%clk 00:03:08]} {[%emt 00:00:15]} Nc4 {[%clk 00:22:47]} {[%emt 00:00:05]} 42.
Rd3 {[%clk 00:03:17]} {[%emt 00:00:01]} Nb2 {[%clk 00:22:28]} {[%emt 00:00:29]}
43. Rc3 {[%clk 00:03:25]} {[%emt 00:00:02]} Nc4 {[%clk 00:22:12]} {[%emt
00:00:26]} 44. Rd3 {[%clk 00:03:34]} {[%emt 00:00:01]} a5 {[%emt 00:02:34]}
1/2-1/2

[Event "FIDE U16 Olympiad_boards_1-80"]
[Site "Eindhoven, Netherlands"]
[Date "2023.08.14"]
[Round "3.24"]
[White "Karaivanova, Petya"]
[Black "Abdinova, Narmin"]
[Result "0-1"]
[TimeControl "2700+10"]
[WhiteElo "1680"]
[BlackElo "1804"]

1. e4 {[%clk 00:45:18]} {[%emt 00:00:01]} c5 {[%clk 00:45:02]} {[%emt
00:00:17]} 2. Nf3 {[%clk 00:45:26]} {[%emt 00:00:03]} a6 {[%clk 00:45:04]}
{[%emt 00:00:07]} 3. Nc3 {[%clk 00:45:34]} {[%emt 00:00:03]} b5 {[%clk
00:45:03]} {[%emt 00:00:12]} 4. d4 {[%clk 00:45:41]} {[%emt 00:00:02]} cxd4
{[%clk 00:45:11]} {[%emt 00:00:02]} 5. Nxd4 {[%clk 00:45:49]} {[%emt 00:00:02]}
Bb7 {[%clk 00:45:17]} {[%emt 00:00:03]} 6. Bd3 {[%clk 00:45:32]} {[%emt
00:00:29]} e6 {[%clk 00:44:22]} {[%emt 00:01:04]} 7. Be3 {[%clk 00:45:27]}
{[%emt 00:00:14]} Nf6 {[%clk 00:40:06]} {[%emt 00:04:26]} 8. f3 {[%clk
00:45:08]} {[%emt 00:00:30]} Qc7 {[%clk 00:39:43]} {[%emt 00:00:32]} 9. Qd2
{[%clk 00:41:27]} {[%emt 00:03:52]} Nc6 {[%clk 00:39:04]} {[%emt 00:00:47]} 10.
g4 {[%clk 00:38:44]} {[%emt 00:02:55]} Nxd4 {[%clk 00:35:27]} {[%emt 00:03:47]}
11. Bxd4 {[%clk 00:38:51]} {[%emt 00:00:02]} Bd6 {[%clk 00:35:34]} {[%emt
00:00:03]} 12. Be3 {[%clk 00:34:49]} {[%emt 00:04:13]} Be5 {[%clk 00:34:06]}
{[%emt 00:01:37]} 13. Nd1 {[%clk 00:30:47]} {[%emt 00:04:13]} d5 {[%clk
00:31:37]} {[%emt 00:02:38]} 14. g5 {[%clk 00:20:46]} {[%emt 00:10:13]} Nh5
{[%clk 00:26:35]} {[%emt 00:05:11]} 15. c3 {[%clk 00:20:46]} {[%emt 00:00:10]}
dxe4 {[%clk 00:23:31]} {[%emt 00:03:14]} 16. Bxe4 {[%clk 00:20:42]} {[%emt
00:00:14]} Bxe4 {[%clk 00:23:06]} {[%emt 00:00:35]} 17. fxe4 {[%clk 00:20:51]}
{[%emt 00:00:02]} Rd8 {[%clk 00:22:39]} {[%emt 00:00:37]} 18. Qg2 {[%clk
00:18:55]} {[%emt 00:02:06]} Nf4 {[%clk 00:21:36]} {[%emt 00:01:12]} 19. Bxf4
{[%clk 00:17:59]} {[%emt 00:01:06]} Bxf4 {[%clk 00:21:44]} {[%emt 00:00:02]} 20.
O-O {[%clk 00:17:09]} {[%emt 00:01:00]} Rd2 {[%clk 00:21:11]} {[%emt 00:00:43]}
21. Rf2 {[%clk 00:16:27]} {[%emt 00:00:53]} Qc5 {[%clk 00:20:06]} {[%emt
00:01:14]} 22. Kh1 {[%clk 00:14:15]} {[%emt 00:02:22]} Qxg5 {[%clk 00:15:30]}
{[%emt 00:04:46]} 23. Qf3 {[%clk 00:12:30]} {[%emt 00:01:57]} e5 {[%clk
00:11:04]} {[%emt 00:04:34]} 24. Rxd2 {[%clk 00:11:57]} {[%emt 00:00:44]} Bxd2
{[%clk 00:11:11]} {[%emt 00:00:03]} 25. Nf2 {[%clk 00:12:05]} {[%emt 00:00:01]}
O-O {[%clk 00:08:54]} {[%emt 00:02:26]} 26. Rg1 {[%clk 00:11:25]} {[%emt
00:00:52]} Qe7 {[%clk 00:08:11]} {[%emt 00:00:52]} 27. Ng4 {[%clk 00:09:58]}
{[%emt 00:01:37]} Bf4 {[%clk 00:07:56]} {[%emt 00:00:24]} 28. Rd1 {[%clk
00:08:53]} {[%emt 00:01:16]} Qh4 {[%clk 00:06:53]} {[%emt 00:01:11]} 29. Qg2
{[%clk 00:08:41]} {[%emt 00:00:25]} Rd8 {[%clk 00:05:24]} {[%emt 00:01:38]} 30.
Rf1 {[%clk 00:05:34]} {[%emt 00:03:18]} h5 {[%clk 00:02:53]} {[%emt 00:02:40]}
31. Nf2 {[%clk 00:05:16]} {[%emt 00:00:28]} Rd2 {[%clk 00:03:01]} {[%emt
00:00:01]} 32. Kg1 {[%clk 00:02:52]} {[%emt 00:02:36]} Rxb2 {[%clk 00:01:32]}
{[%emt 00:01:38]} 33. a3 {[%clk 00:01:49]} {[%emt 00:01:14]} Be3 {[%clk
00:00:56]} {[%emt 00:00:44]} 34. Qf3 {[%clk 00:01:53]} {[%emt 00:00:08]} Bxf2+
{[%clk 00:00:42]} {[%emt 00:00:24]} 35. Rxf2 {[%clk 00:02:01]} {[%emt
00:00:02]} Rxf2 {[%clk 00:00:46]} {[%emt 00:00:05]} 36. Qxf2 {[%clk 00:02:09]}
{[%emt 00:00:02]} Qxf2+ {[%clk 00:00:21]} {[%emt 00:00:35]} 37. Kxf2 {[%emt
00:00:17]} g5 {[%clk 00:00:16]} 38. Ke3 {[%clk 00:02:26]} {[%emt 00:00:01]} Kf8
{[%clk 00:00:24]} {[%emt 00:00:02]} 39. Kd3 {[%clk 00:02:35]} {[%emt 00:00:02]}
Ke7 {[%clk 00:00:32]} {[%emt 00:00:02]} 40. c4 {[%clk 00:02:13]} {[%emt
00:00:32]} bxc4+ {[%clk 00:00:40]} {[%emt 00:00:02]} 41. Kxc4 {[%clk 00:02:21]}
{[%emt 00:00:01]} Ke6 {[%clk 00:00:49]} {[%emt 00:00:02]} 42. Kc5 {[%clk
00:01:33]} {[%emt 00:00:57]} g4 {[%emt 00:00:11]} 0-1

[Event "FIDE U16 Olympiad_boards_1-80"]
[Site "Eindhoven, Netherlands"]
[Date "2023.08.14"]
[Round "3.25"]
[White "Perossa, Nicolas"]
[Black "Pichon, Ewen"]
[Result "0-1"]
[TimeControl "2700+10"]
[WhiteElo "2062"]
[BlackElo "2194"]

1. e4 {[%clk 00:45:19]} c5 {[%clk 00:41:52]} {[%emt 00:03:28]} 2. Nf3 {[%clk
00:45:28]} {[%emt 00:00:02]} e6 {[%clk 00:42:01]} {[%emt 00:00:02]} 3. c3
{[%clk 00:45:29]} {[%emt 00:00:09]} Nf6 {[%clk 00:42:09]} {[%emt 00:00:01]} 4.
e5 {[%clk 00:45:37]} {[%emt 00:00:02]} Nd5 {[%clk 00:42:18]} 5. d4 {[%clk
00:45:47]} cxd4 {[%clk 00:42:27]} {[%emt 00:00:01]} 6. cxd4 {[%clk 00:45:56]}
d6 {[%clk 00:42:37]} 7. Nc3 {[%clk 00:45:37]} {[%emt 00:00:28]} Nc6 {[%clk
00:42:07]} {[%emt 00:00:40]} 8. Bb5 {[%clk 00:36:29]} {[%emt 00:09:18]} Nxc3
{[%clk 00:40:10]} {[%emt 00:02:07]} 9. bxc3 {[%clk 00:36:36]} {[%emt 00:00:03]}
Bd7 {[%clk 00:40:13]} {[%emt 00:00:06]} 10. exd6 {[%clk 00:30:03]} {[%emt
00:06:43]} Bxd6 {[%clk 00:39:20]} {[%emt 00:01:03]} 11. Bd3 {[%clk 00:29:32]}
{[%emt 00:00:41]} h6 {[%clk 00:38:56]} {[%emt 00:00:35]} 12. Bc2 {[%clk
00:28:40]} {[%emt 00:01:02]} Qc7 {[%clk 00:34:27]} {[%emt 00:04:39]} 13. Be3
{[%clk 00:25:50]} {[%emt 00:03:00]} Ne7 {[%clk 00:33:26]} {[%emt 00:01:12]} 14.
O-O {[%clk 00:23:40]} {[%emt 00:02:19]} Nd5 {[%clk 00:32:52]} {[%emt 00:00:44]}
15. c4 {[%clk 00:20:02]} {[%emt 00:03:48]} Nxe3 {[%clk 00:32:00]} {[%emt
00:01:02]} 16. fxe3 {[%clk 00:20:05]} {[%emt 00:00:07]} Qxc4 {[%clk 00:31:58]}
{[%emt 00:00:12]} 17. Bd3 {[%clk 00:16:57]} {[%emt 00:03:18]} Qa4 {[%clk
00:31:15]} {[%emt 00:00:53]} 18. Bc2 {[%clk 00:16:38]} {[%emt 00:00:29]} Qa6
{[%clk 00:28:57]} {[%emt 00:02:28]} 19. Rb1 {[%clk 00:03:43]} {[%emt 00:13:05]}
O-O {[%clk 00:26:08]} {[%emt 00:02:59]} 20. Bd3 {[%clk 00:03:52]} {[%emt
00:00:01]} Qxa2 {[%clk 00:25:38]} {[%emt 00:00:40]} 21. Rxb7 {[%clk 00:03:59]}
{[%emt 00:00:03]} Bc6 {[%clk 00:25:16]} {[%emt 00:00:32]} 22. Rb1 {[%clk
00:04:06]} {[%emt 00:00:02]} Rfb8 {[%clk 00:24:21]} {[%emt 00:01:05]} 23. Ra1
{[%clk 00:02:57]} {[%emt 00:01:20]} Qb3 {[%clk 00:24:29]} {[%emt 00:00:01]} 24.
Qe2 {[%clk 00:01:02]} {[%emt 00:02:06]} Bb5 {[%clk 00:24:27]} {[%emt 00:00:12]}
25. Bxb5 {[%clk 00:00:48]} {[%emt 00:00:24]} Qxb5 {[%clk 00:24:36]} 26. Qf2
{[%clk 00:00:55]} {[%emt 00:00:04]} Qd7 {[%clk 00:24:28]} {[%emt 00:00:17]} 27.
Ra6 {[%clk 00:00:45]} {[%emt 00:00:20]} Rb7 {[%clk 00:23:28]} {[%emt 00:01:10]}
28. Ne5 {[%clk 00:00:29]} {[%emt 00:00:26]} Bxe5 {[%clk 00:23:32]} {[%emt
00:00:06]} 29. dxe5 {[%emt 00:00:26]} Qb5 {[%clk 00:23:16]} 30. Rd6 {[%clk
00:00:16]} {[%emt 00:00:34]} Qxe5 {[%clk 00:23:22]} {[%emt 00:00:04]} 31. Rd4
{[%clk 00:00:25]} {[%emt 00:00:01]} Rab8 {[%clk 00:22:45]} {[%emt 00:00:46]} 32.
Qf3 {[%clk 00:00:14]} {[%emt 00:00:21]} f5 {[%clk 00:22:03]} {[%emt 00:00:52]}
33. Rd2 {[%clk 00:00:11]} {[%emt 00:00:13]} Rb3 {[%clk 00:21:42]} {[%emt
00:00:31]} 34. Re2 {[%clk 00:00:20]} {[%emt 00:00:01]} a5 {[%clk 00:21:41]}
{[%emt 00:00:11]} 35. Qf4 {[%clk 00:00:19]} {[%emt 00:00:12]} Qxf4 {[%clk
00:21:43]} {[%emt 00:00:07]} 36. exf4 {[%clk 00:00:28]} Kf7 {[%clk 00:21:48]}
{[%emt 00:00:04]} 37. Re5 {[%clk 00:00:34]} {[%emt 00:00:05]} R8b5 {[%clk
00:21:57]} {[%emt 00:00:02]} 38. Re2 {[%clk 00:00:24]} {[%emt 00:00:19]} Rb1
{[%clk 00:22:00]} {[%emt 00:00:07]} 39. Ra2 {[%clk 00:00:13]} {[%emt 00:00:21]}
Rxf1+ {[%clk 00:21:47]} {[%emt 00:00:23]} 40. Kxf1 {[%clk 00:00:22]} {[%emt
00:00:01]} Kf6 {[%clk 00:21:25]} {[%emt 00:00:31]} 41. Kf2 {[%clk 00:00:19]}
{[%emt 00:00:14]} e5 {[%clk 00:21:17]} {[%emt 00:00:19]} 42. fxe5+ {[%clk
00:00:27]} {[%emt 00:00:01]} Rxe5 {[%clk 00:21:24]} {[%emt 00:00:03]} 43. Rb2
{[%clk 00:00:11]} {[%emt 00:00:27]} a4 {[%clk 00:21:18]} {[%emt 00:00:15]} 44.
Rb6+ {[%clk 00:00:13]} {[%emt 00:00:09]} Re6 {[%clk 00:21:27]} {[%emt
00:00:01]} 45. Rb2 {[%clk 00:00:21]} {[%emt 00:00:01]} a3 {[%clk 00:21:32]}
{[%emt 00:00:05]} 46. Ra2 {[%clk 00:00:31]} Ra6 {[%clk 00:21:42]} 47. Ke3
{[%emt 00:00:02]} Ke5 {[%clk 00:21:27]} {[%emt 00:00:23]} 48. g3 {[%clk
00:00:45]} {[%emt 00:00:05]} g5 {[%clk 00:21:08]} {[%emt 00:00:29]} 49. Kf3
{[%clk 00:00:55]} {[%emt 00:00:01]} Kd4 {[%clk 00:21:12]} {[%emt 00:00:04]} 50.
h4 {[%clk 00:00:59]} {[%emt 00:00:06]} Kc3 {[%clk 00:21:19]} {[%emt 00:00:04]}
51. hxg5 {[%clk 00:01:05]} {[%emt 00:00:05]} hxg5 {[%clk 00:21:27]} 52. Ke3
{[%clk 00:01:10]} {[%emt 00:00:04]} Kb3 {[%clk 00:21:36]} {[%emt 00:00:02]} 53.
Ra1 {[%clk 00:01:20]} a2 {[%clk 00:21:44]} {[%emt 00:00:01]} 54. Kd4 {[%emt
00:00:13]} 0-1

[Event "FIDE U16 Olympiad_boards_1-80"]
[Site "Eindhoven, Netherlands"]
[Date "2023.08.14"]
[Round "3.26"]
[White "Schippke, Manon"]
[Black "Candian, Lorenzo"]
[Result "1-0"]
[TimeControl "2700+10"]
[WhiteElo "2120"]
[BlackElo "1922"]

1. e4 {[%clk 00:43:00]} {[%emt 00:02:15]} c5 {[%clk 00:44:57]} {[%emt
00:00:28]} 2. Nf3 {[%clk 00:43:07]} {[%emt 00:00:03]} Nc6 {[%clk 00:45:04]}
{[%emt 00:00:03]} 3. Bb5 {[%clk 00:43:16]} {[%emt 00:00:02]} Qc7 {[%clk
00:45:08]} {[%emt 00:00:05]} 4. O-O {[%clk 00:42:46]} {[%emt 00:00:40]} a6
{[%clk 00:45:11]} {[%emt 00:00:07]} 5. Be2 {[%clk 00:42:05]} {[%emt 00:00:51]}
e5 {[%clk 00:36:22]} {[%emt 00:08:58]} 6. Nc3 {[%clk 00:40:13]} {[%emt
00:02:03]} Nge7 {[%clk 00:36:25]} {[%emt 00:00:06]} 7. Re1 {[%clk 00:38:38]}
{[%emt 00:01:46]} d6 {[%clk 00:36:19]} {[%emt 00:00:16]} 8. Nd5 {[%clk
00:36:49]} {[%emt 00:01:59]} Nxd5 {[%clk 00:36:18]} {[%emt 00:00:11]} 9. exd5
{[%clk 00:36:57]} {[%emt 00:00:02]} Ne7 {[%clk 00:36:24]} {[%emt 00:00:04]} 10.
c3 {[%clk 00:33:53]} {[%emt 00:03:14]} Nxd5 {[%clk 00:33:46]} {[%emt 00:02:48]}
11. d4 {[%clk 00:33:58]} {[%emt 00:00:05]} Be6 {[%clk 00:33:47]} {[%emt
00:00:08]} 12. dxe5 {[%clk 00:27:30]} {[%emt 00:06:39]} dxe5 {[%clk 00:30:30]}
{[%emt 00:03:27]} 13. Qa4+ {[%clk 00:27:06]} {[%emt 00:00:35]} Qd7 {[%clk
00:28:34]} {[%emt 00:02:05]} 14. Qxd7+ {[%clk 00:27:09]} {[%emt 00:00:07]} Kxd7
{[%clk 00:28:43]} {[%emt 00:00:01]} 15. Nxe5+ {[%clk 00:27:15]} {[%emt
00:00:04]} Kc7 {[%clk 00:28:50]} {[%emt 00:00:02]} 16. Bf3 {[%clk 00:24:33]}
{[%emt 00:02:53]} Rd8 {[%clk 00:27:10]} {[%emt 00:01:49]} 17. a4 {[%clk
00:24:29]} {[%emt 00:00:15]} Bd6 {[%clk 00:21:10]} {[%emt 00:06:10]} 18. Nc4
{[%clk 00:22:36]} {[%emt 00:02:03]} Be7 {[%clk 00:20:24]} {[%emt 00:00:56]} 19.
Bxd5 {[%clk 00:16:30]} {[%emt 00:06:16]} Rxd5 {[%clk 00:20:21]} {[%emt
00:00:13]} 20. Bf4+ {[%clk 00:16:38]} {[%emt 00:00:02]} Kc6 {[%clk 00:17:56]}
{[%emt 00:02:34]} 21. Ne5+ {[%clk 00:15:13]} {[%emt 00:01:35]} Kb6 {[%clk
00:18:04]} {[%emt 00:00:03]} 22. Nxf7 {[%clk 00:14:44]} {[%emt 00:00:40]} Bxf7
{[%clk 00:17:44]} {[%emt 00:00:30]} 23. Rxe7 {[%clk 00:14:51]} {[%emt
00:00:03]} Rhd8 {[%clk 00:17:35]} {[%emt 00:00:18]} 24. Bc7+ {[%clk 00:14:54]}
{[%emt 00:00:07]} 1-0

[Event "FIDE U16 Olympiad_boards_1-80"]
[Site "Eindhoven, Netherlands"]
[Date "2023.08.14"]
[Round "3.27"]
[White "Vincenti, Leonardo"]
[Black "Bat, Bilguun"]
[Result "0-1"]
[TimeControl "2700+10"]
[WhiteElo "2180"]
[BlackElo "2220"]

1. e4 {[%clk 00:45:20]} c5 {[%clk 00:42:05]} {[%emt 00:03:15]} 2. Nf3 {[%clk
00:45:28]} {[%emt 00:00:02]} d6 {[%clk 00:41:57]} {[%emt 00:00:17]} 3. Bb5+
{[%clk 00:45:36]} {[%emt 00:00:03]} Bd7 {[%clk 00:41:38]} {[%emt 00:00:27]} 4.
Bxd7+ {[%clk 00:45:44]} {[%emt 00:00:04]} Nxd7 {[%clk 00:41:41]} {[%emt
00:00:06]} 5. O-O {[%clk 00:45:51]} {[%emt 00:00:04]} Ngf6 {[%clk 00:41:45]}
{[%emt 00:00:04]} 6. Qe2 {[%clk 00:45:48]} {[%emt 00:00:14]} Rc8 {[%clk
00:41:40]} {[%emt 00:00:15]} 7. c4 {[%clk 00:45:54]} {[%emt 00:00:04]} g6
{[%clk 00:41:43]} {[%emt 00:00:07]} 8. Nc3 {[%clk 00:46:02]} {[%emt 00:00:03]}
Bg7 {[%clk 00:41:47]} {[%emt 00:00:04]} 9. Rd1 {[%clk 00:46:10]} {[%emt
00:00:03]} O-O {[%clk 00:39:36]} {[%emt 00:02:20]} 10. d4 {[%clk 00:46:15]}
{[%emt 00:00:06]} cxd4 {[%clk 00:39:35]} {[%emt 00:00:11]} 11. Nxd4 {[%clk
00:46:23]} {[%emt 00:00:03]} a6 {[%clk 00:37:57]} {[%emt 00:01:48]} 12. a4
{[%clk 00:45:07]} {[%emt 00:01:25]} Re8 {[%clk 00:35:28]} {[%emt 00:02:38]} 13.
Be3 {[%clk 00:42:30]} {[%emt 00:02:48]} Qa5 {[%clk 00:34:50]} {[%emt 00:00:47]}
14. Rac1 {[%clk 00:42:01]} {[%emt 00:00:41]} Qb4 {[%clk 00:30:56]} {[%emt
00:04:03]} 15. b3 {[%clk 00:32:15]} {[%emt 00:09:57]} e5 {[%clk 00:28:26]}
{[%emt 00:02:38]} 16. Na2 {[%clk 00:32:06]} {[%emt 00:00:20]} Qa3 {[%clk
00:25:57]} {[%emt 00:02:39]} 17. Nf3 {[%clk 00:29:08]} {[%emt 00:03:09]} Qxb3
{[%clk 00:24:48]} {[%emt 00:01:19]} 18. Rxd6 {[%clk 00:29:01]} {[%emt
00:00:17]} Qxa4 {[%clk 00:24:36]} {[%emt 00:00:22]} 19. c5 {[%clk 00:24:39]}
{[%emt 00:04:31]} Nxe4 {[%clk 00:16:05]} {[%emt 00:08:42]} 20. Rc4 {[%clk
00:24:32]} {[%emt 00:00:17]} Qb5 {[%clk 00:15:54]} {[%emt 00:00:21]} 21. Rxd7
{[%clk 00:22:13]} {[%emt 00:02:28]} Qxd7 {[%clk 00:15:45]} {[%emt 00:00:19]} 22.
Rxe4 {[%clk 00:22:22]} {[%emt 00:00:02]} f5 {[%clk 00:14:13]} {[%emt 00:01:42]}
23. Rc4 {[%clk 00:20:20]} {[%emt 00:02:12]} e4 {[%clk 00:13:20]} {[%emt
00:01:02]} 24. Nd2 {[%clk 00:19:21]} {[%emt 00:01:09]} Qf7 {[%clk 00:11:43]}
{[%emt 00:01:48]} 25. g3 {[%clk 00:19:04]} {[%emt 00:00:27]} Red8 {[%clk
00:11:18]} {[%emt 00:00:35]} 26. Rc2 {[%clk 00:17:39]} {[%emt 00:01:35]} b5
{[%clk 00:10:33]} {[%emt 00:00:56]} 27. c6 {[%clk 00:16:29]} {[%emt 00:01:19]}
Qe6 {[%clk 00:09:02]} {[%emt 00:01:41]} 28. c7 {[%clk 00:16:01]} {[%emt
00:00:37]} Rd7 {[%clk 00:09:11]} {[%emt 00:00:01]} 29. Bf4 {[%clk 00:16:10]}
{[%emt 00:00:01]} Be5 {[%clk 00:09:10]} {[%emt 00:00:12]} 30. Bxe5 {[%clk
00:14:22]} {[%emt 00:01:58]} Qxe5 {[%clk 00:09:19]} {[%emt 00:00:01]} 31. Nb4
{[%clk 00:14:31]} Rdxc7 {[%clk 00:09:10]} {[%emt 00:00:18]} 32. Ra2 {[%clk
00:14:28]} {[%emt 00:00:13]} Rc1+ {[%clk 00:08:28]} {[%emt 00:00:53]} 33. Kg2
{[%clk 00:14:37]} {[%emt 00:00:01]} Qd6 {[%clk 00:08:02]} {[%emt 00:00:36]} 34.
Nxa6 {[%clk 00:13:31]} {[%emt 00:01:16]} R1c2 {[%clk 00:07:21]} {[%emt
00:00:50]} 35. Rxc2 {[%clk 00:13:40]} {[%emt 00:00:02]} Rxc2 {[%clk 00:07:31]}
{[%emt 00:00:01]} 36. Nxe4 {[%clk 00:13:49]} Qc6 {[%clk 00:07:13]} {[%emt
00:00:28]} 37. Nb4 {[%clk 00:13:56]} {[%emt 00:00:02]} Rxe2 {[%clk 00:07:14]}
{[%emt 00:00:09]} 38. Nxc6 {[%clk 00:14:05]} {[%emt 00:00:01]} Rxe4 {[%clk
00:07:23]} {[%emt 00:00:01]} 39. Na7 {[%clk 00:14:13]} {[%emt 00:00:01]} b4
{[%clk 00:07:32]} {[%emt 00:00:02]} 40. Nc6 {[%clk 00:14:22]} b3 {[%clk
00:07:40]} {[%emt 00:00:02]} 0-1